[Event "34th MPL National U12G Chess-ch 2022"]
[Site "Mysore"]
[Date "2022.04.13"]
[Round "10.4"]
[White "Aadya Gupta"]
[Black "Arshiya Das"]
[Result "1-0"]
[ECO "E07"]
[WhiteElo "1218"]
[BlackElo "1407"]
[Annotator "NA RC"]
[PlyCount "85"]
[EventDate "2022.04.09"]
[EventCountry "IND"]
[SourceTitle "playchess.com"]
[Source "ChessBase"]
[SourceQuality "1"]
[TimeControl "5400+30"]

1. d4 {[%emt 0:00:02]} d5 {[%emt 0:00:07]} 2. Nf3 {[%emt 0:00:05]} Nf6 {[%emt 0:00:06]} 3. g3 {[%emt 0:00:04]} e6 {[%emt 0:00:08]} 4. Bg2 {[%emt 0:00:04]} Be7 {[%emt 0:00:08]} 5. O-O {[%emt 0:00:05]} O-O {[%emt 0:00:23]} 6. c4 {[%emt 0:00:03]} c6 {[%emt 0:00:30]} 7. Nc3 {[%emt 0:00:06]} Nbd7 {[%emt 0:00:07]} 8. b3 {[%emt 0:00:16]} Qc7 {[%emt 0:04:05]} 9. Bb2 {[%emt 0:00:39]} b6 {[%emt 0:02:01]} 10. Rc1 {[%emt 0:00:05]} Ba6 {[%emt 0:01:08]} 11. Nd2 {[%emt 0:00:49]} Bb4 {[%emt 0:05:22]} 12. e4 {[%emt 0:01:11]} dxe4 {[%emt 1:22:25]} 13. Ndxe4 {[%emt 0:01:22]} Rad8 {[%emt 0:00:00]} 14. Qc2 {[%emt 0:01:03]} Bxc3 {[%emt 0:00:00]} 15. Qxc3 {[%emt 0:01:02]} Nxe4 {[%emt 0:00:00]} 16. Bxe4 {[%emt 0:00:05]} Nf6 {[%emt 0:00:00]} 17. Bg2 {[%emt 0:00:17]} c5 {[%emt 0:00:00]} 18. dxc5 {[%emt 0:00:36]} Qxc5 {[%emt 0:00:00]} 19. Rfd1 {[%emt 0:01:37]} Qe7 {[%emt 0:00:00]} 20. b4 {[%emt 0:01:50]} Rxd1+ {[%emt 0:00:00]} 21. Rxd1 {[%emt 0:00:28]} Rd8 {[%emt 0:00:00]} 22. Rc1 {[%emt 0:03:53]} Bb7 {[%emt 0:00:00]} 23. c5 {[%emt 0:01:18]} Bxg2 {[%emt 0:00:00]} 24. Kxg2 {[%emt 0:00:02]} Qf8 {[%emt 0:00:00]} 25. a3 {[%emt 0:02:55]} bxc5 {[%emt 0:00:00]} 26. bxc5 {[%emt 0:00:13]} Rc8 {[%emt 0:00:00]} 27. Qa5 {[%emt 0:02:18]} Ne4 {[%emt 0:00:00]} 28. c6 {[%emt 0:02:34]} Qe7 {[%emt 0:00:00]} 29. c7 {[%emt 0:01:23]} Qd6 {[%emt 0:00:00]} 30. Qxa7 {[%emt 0:02:09]} Nd2 {[%emt 0:00:00]} 31. Qd4 {[%emt 0:03:05]} Qxd4 {[%emt 0:00:00]} 32. Bxd4 {[%emt 0:00:05]} Kf8 {[%emt 0:00:00]} 33. Bb6 {[%emt 0:01:02]} Ke7 {[%emt 0:00:00]} 34. a4 {[%emt 0:00:24]} Ne4 {[%emt 0:00:08]} 35. a5 {[%emt 0:00:15]} Kd7 {[%emt 0:00:28]} 36. a6 {[%emt 0:00:13]} Nf6 {[%emt 0:00:37]} 37. a7 {[%emt 0:00:40]} Nd5 {[%emt 0:00:18]} 38. Ba5 {[%emt 0:00:32]} Ra8 {[%emt 0:00:14]} 39. Kf3 {[%emt 0:01:04]} Kc8 {[%emt 0:00:20]} 40. Rb1 {[%emt 0:06:53]} Nxc7 {[%emt 0:00:46]} 41. Bb6 {[%emt 0:00:30]} Nd5 {[%emt 0:01:41]} 42. Bc5 {[%emt 0:01:06]} Kc7 {[%emt 0:01:39]} 43. Rb8 {[%emt 0:01:03]} 1-0

[Event "34th MPL National U12G Chess-ch 2022"]
[Site "Mysore"]
[Date "2022.04.13"]
[Round "10.5"]
[White "Nivedita V C"]
[Black "Prishita Gupta"]
[Result "1-0"]
[ECO "D35"]
[WhiteElo "1200"]
[BlackElo "1412"]
[Annotator "NA RC"]
[PlyCount "75"]
[EventDate "2022.04.09"]
[EventCountry "IND"]
[SourceTitle "playchess.com"]
[Source "ChessBase"]
[SourceQuality "1"]
[TimeControl "5400+30"]

1. d4 {[%emt 0:00:03]} d5 {[%emt 0:00:10]} 2. c4 {[%emt 0:00:05]} e6 {[%emt 0:00:10]} 3. Nc3 {[%emt 0:00:04]} Nf6 {[%emt 0:00:10]} 4. Bf4 {[%emt 0:00:12]} c6 {[%emt 0:00:18]} 5. e3 {[%emt 0:00:10]} Bd6 {[%emt 0:00:19]} 6. Bg3 {[%emt 0:00:10]} Qc7 {[%emt 0:00:34]} 7. Nf3 {[%emt 0:00:21]} Nbd7 {[%emt 0:00:30]} 8. Bd3 {[%emt 0:00:16]} b6 {[%emt 0:01:15]} 9. O-O {[%emt 0:00:17]} O-O {[%emt 0:00:28]} 10. Rc1 {[%emt 0:00:26]} Bxg3 {[%emt 0:00:28]} 11. hxg3 {[%emt 0:00:18]} Qb8 {[%emt 0:01:28]} 12. e4 {[%emt 0:03:19]} dxe4 {[%emt 0:01:22]} 13. Nxe4 {[%emt 0:00:17]} Bb7 {[%emt 0:00:25]} 14. c5 {[%emt 0:03:13]} Nxe4 {[%emt 0:01:05]} 15. Bxe4 {[%emt 0:00:07]} bxc5 {[%emt 0:00:12]} 16. Qc2 {[%emt 0:05:28]} Nf6 {[%emt 0:03:04]} 17. dxc5 {[%emt 0:01:35]} h6 {[%emt 0:00:16]} 18. Rfd1 {[%emt 0:01:06]} Nd5 {[%emt 0:00:25]} 19. Bxd5 {[%emt 0:00:52]} exd5 {[%emt 0:00:19]} 20. Re1 {[%emt 0:01:22]} Qc7 {[%emt 0:01:05]} 21. Nd4 {[%emt 0:02:07]} g6 {[%emt 0:01:40]} 22. Re3 {[%emt 0:06:56]} Qd8 {[%emt 0:01:55]} 23. Ne6 {[%emt 1:13:16]} fxe6 {[%emt 0:01:32]} 24. Qxg6+ {[%emt 0:00:00]} Kh8 {[%emt 0:00:06]} 25. Qxh6+ {[%emt 0:00:00]} Kg8 {[%emt 0:00:27]} 26. Qg6+ {[%emt 0:00:00]} Kh8 {[%emt 0:00:13]} 27. Re5 {[%emt 0:00:00]} Rf5 {[%emt 0:00:14]} 28. Qh6+ {[%emt 0:00:00]} Kg8 {[%emt 0:00:12]} 29. Rxe6 {[%emt 0:00:00]} Rg5 {[%emt 0:03:09]} 30. Rce1 {[%emt 0:00:00]} Rg7 {[%emt 0:00:59]} 31. Qh5 {[%emt 0:00:00]} Rf7 {[%emt 0:03:44]} 32. Qg6+ {[%emt 0:00:00]} Kf8 {[%emt 0:00:22]} 33. Qh6+ {[%emt 0:00:00]} Rg7 {[%emt 0:01:17]} 34. Re7 {[%emt 0:00:00]} Qxe7 {[%emt 0:04:05]} 35. Rxe7 {[%emt 0:00:00]} Kxe7 {[%emt 0:00:35]} 36. Qxg7+ {[%emt 0:00:00]} Ke8 {[%emt 0:00:29]} 37. Qxb7 {[%emt 0:00:00]} Rd8 {[%emt 0:00:06]} 38. Qxc6+ {[%emt 0:00:00]} 1-0

[Event "34th MPL National U12G Chess-ch 2022"]
[Site "Mysore"]
[Date "2022.04.13"]
[Round "10.6"]
[White "Vidula Anbuselvan"]
[Black "Shriyana S Mallya"]
[Result "0-1"]
[ECO "C60"]
[WhiteElo "1125"]
[BlackElo "1277"]
[Annotator "NA RC"]
[PlyCount "140"]
[EventDate "2022.04.09"]
[EventCountry "IND"]
[SourceTitle "playchess.com"]
[Source "ChessBase"]
[SourceQuality "1"]
[TimeControl "5400+30"]

1. e4 {[%emt 0:00:17]} e5 {[%emt 0:00:08]} 2. Nf3 {[%emt 0:00:04]} Nc6 {[%emt 0:00:05]} 3. Bb5 {[%emt 0:00:08]} Nge7 {[%emt 0:00:19]} 4. d4 {[%emt 0:01:53]} exd4 {[%emt 0:05:49]} 5. Nxd4 {[%emt 0:00:48]} Ng6 {[%emt 0:11:22]} 6. c3 {[%emt 0:10:01]} Be7 {[%emt 0:04:56]} 7. Be3 {[%emt 0:04:07]} Nxd4 {[%emt 0:13:01]} 8. cxd4 {[%emt 0:02:02]} c6 {[%emt 0:02:40]} 9. Bd3 {[%emt 0:01:01]} d5 {[%emt 0:00:41]} 10. Nc3 {[%emt 0:07:11]} dxe4 {[%emt 0:07:27]} 11. Bxe4 {[%emt 0:01:11]} O-O {[%emt 0:03:06]} 12. f4 {[%emt 0:10:38]} f5 {[%emt 0:01:52]} 13. Bf3 {[%emt 0:00:50]} Bd6 {[%emt 0:01:24]} 14. Qd2 {[%emt 0:06:14]} Re8 {[%emt 0:01:41]} 15. O-O {[%emt 0:00:53]} a6 {[%emt 0:08:56]} 16. Rad1 {[%emt 0:02:57]} Bd7 {[%emt 0:03:48]} 17. a3 {[%emt 0:04:16]} Qc7 {[%emt 0:05:04]} 18. g3 {[%emt 0:01:20]} Rad8 {[%emt 0:01:13]} 19. Qf2 {[%emt 0:04:35]} Nh8 {[%emt 0:04:57]} 20. Kh1 {[%emt 0:03:57]} Rb8 {[%emt 0:03:54]} 21. Rc1 {[%emt 0:02:03]} Qd8 {[%emt 0:05:48]} 22. Na4 {[%emt 0:09:45]} Nf7 {[%emt 0:06:15]} 23. Nc5 {[%emt 0:05:26]} Be6 {[%emt 0:02:16]} 24. Nxe6 {[%emt 0:02:45]} Rxe6 {[%emt 0:00:03]} 25. d5 {[%emt 0:00:24]} cxd5 {[%emt 0:00:27]} 26. Bxd5 {[%emt 0:00:13]} Re7 {[%emt 0:00:35]} 27. Rfd1 {[%emt 0:01:11]} Rc7 {[%emt 0:03:40]} 28. Bxf7+ {[%emt 0:13:58]} Rxf7 {[%emt 0:00:44]} 29. Bc5 {[%emt 0:00:41]} Rf6 {[%emt 0:00:56]} 30. Qd2 {[%emt 0:00:38]} Bc7 {[%emt 0:01:06]} 31. Qc3 {[%emt 0:02:26]} Qe8 {[%emt 0:00:21]} 32. Qc4+ {[%emt 0:00:52]} Rf7 {[%emt 0:00:17]} 33. Bf2 {[%emt 0:01:01]} Rd8 {[%emt 0:00:42]} 34. Rxd8 {[%emt 0:00:33]} Qxd8 {[%emt 0:00:13]} 35. Qe2 {[%emt 0:00:38]} Re7 {[%emt 0:00:54]} 36. Qc4+ {[%emt 0:00:08]} Rf7 {[%emt 0:00:18]} 37. Bd4 {[%emt 0:00:41]} b5 {[%emt 0:00:32]} 38. Qc5 {[%emt 0:00:45]} Rd7 {[%emt 0:00:49]} 39. Be3 {[%emt 0:00:38]} g6 {[%emt 0:00:38]} 40. Qc2 {[%emt 0:00:24]} Bb6 {[%emt 0:00:35]} 41. Bxb6 {[%emt 0:00:26]} Qxb6 {[%emt 0:00:09]} 42. Qb3+ {[%emt 0:00:21]} Kg7 {[%emt 0:00:13]} 43. Qc3+ {[%emt 0:00:14]} Kh6 {[%emt 0:00:22]} 44. Qc6 {[%emt 0:01:13]} Qd4 {[%emt 0:00:18]} 45. Qg2 {[%emt 0:00:30]} Qe3 {[%emt 0:00:46]} 46. Qh3+ {[%emt 0:00:26]} Kg7 {[%emt 0:00:07]} 47. Qf1 {[%emt 0:00:19]} a5 {[%emt 0:01:05]} 48. Qe1 {[%emt 0:00:35]} Qf3+ {[%emt 0:00:29]} 49. Kg1 {[%emt 0:00:05]} Kh6 {[%emt 0:00:56]} 50. Qf1 {[%emt 0:01:12]} Qe3+ {[%emt 0:00:05]} 51. Kh1 {[%emt 0:00:05]} Qe4+ {[%emt 0:00:24]} 52. Kg1 {[%emt 0:00:28]} Qd4+ {[%emt 0:00:09]} 53. Kh1 {[%emt 0:00:33]} Qxb2 {[%emt 0:00:26]} 54. Rb1 {[%emt 0:00:03]} Qxa3 {[%emt 0:00:18]} 55. Rxb5 {[%emt 0:00:33]} Qa4 {[%emt 0:00:33]} 56. Rb1 {[%emt 0:00:39]} Qe4+ {[%emt 0:00:41]} 57. Kg1 {[%emt 0:00:04]} a4 {[%emt 0:00:27]} 58. Qe1 {[%emt 0:00:56]} Qxe1+ {[%emt 0:01:15]} 59. Rxe1 {[%emt 0:00:01]} a3 {[%emt 0:00:01]} 60. Ra1 {[%emt 0:00:18]} Ra7 {[%emt 0:00:05]} 61. Kf2 {[%emt 0:00:04]} a2 {[%emt 0:00:18]} 62. Ke3 {[%emt 0:00:21]} Kh5 {[%emt 0:00:32]} 63. h3 {[%emt 0:00:14]} Ra3+ {[%emt 0:00:05]} 64. Kf2 {[%emt 0:00:06]} g5 {[%emt 0:00:22]} 65. fxg5 {[%emt 0:00:14]} Kxg5 {[%emt 0:00:05]} 66. Kg2 {[%emt 0:00:14]} Kf6 {[%emt 0:00:11]} 67. Kf2 {[%emt 0:00:07]} Ke5 {[%emt 0:00:07]} 68. Ke2 {[%emt 0:01:08]} Rxg3 {[%emt 0:00:14]} 69. Kf2 {[%emt 0:00:18]} Rxh3 {[%emt 0:00:41]} 70. Kg2 {[%emt 0:00:08]} Ra3 {[%emt 0:00:03]} 0-1

[Event "34th MPL National U12G Chess-ch 2022"]
[Site "Mysore"]
[Date "2022.04.14"]
[Round "11.1"]
[White "Shreya G Hipparagi"]
[Black "Saparya Ghosh"]
[Result "1/2-1/2"]
[ECO "B01"]
[WhiteElo "1552"]
[BlackElo "1341"]
[Annotator "NA RC"]
[PlyCount "99"]
[EventDate "2022.04.09"]
[EventCountry "IND"]
[SourceTitle "playchess.com"]
[Source "ChessBase"]
[SourceQuality "1"]
[TimeControl "5400+30"]

1. e4 {[%emt 0:00:03]} d5 {[%emt 0:01:00]} 2. exd5 {[%emt 0:00:13]} Qxd5 {[%emt 0:00:08]} 3. Nc3 {[%emt 0:00:24]} Qd8 {[%emt 0:00:10]} 4. d4 {[%emt 0:00:26]} c6 {[%emt 0:00:08]} 5. Nf3 {[%emt 0:00:57]} Bf5 {[%emt 0:00:26]} 6. Bc4 {[%emt 0:00:45]} e6 {[%emt 0:00:40]} 7. O-O {[%emt 0:02:13]} Nf6 {[%emt 0:00:38]} 8. h3 {[%emt 0:01:16]} Bd6 {[%emt 0:00:49]} 9. Re1 {[%emt 0:01:15]} O-O {[%emt 0:00:32]} 10. Nh4 {[%emt 0:02:48]} Bg6 {[%emt 0:05:53]} 11. Nxg6 {[%emt 0:03:27]} hxg6 {[%emt 0:00:25]} 12. Bg5 {[%emt 0:02:02]} Nbd7 {[%emt 0:05:39]} 13. Ne4 {[%emt 0:04:10]} Be7 {[%emt 0:03:12]} 14. Bxf6 {[%emt 0:01:39]} Nxf6 {[%emt 0:02:55]} 15. Nxf6+ {[%emt 0:01:40]} Bxf6 {[%emt 0:00:37]} 16. c3 {[%emt 0:00:19]} Re8 {[%emt 0:04:20]} 17. Qf3 {[%emt 0:01:02]} Qd6 {[%emt 0:03:51]} 18. Re4 {[%emt 0:01:25]} Bd8 {[%emt 0:18:26]} 19. Rae1 {[%emt 0:03:40]} Bc7 {[%emt 0:00:56]} 20. g3 {[%emt 0:00:37]} Qd7 {[%emt 0:00:50]} 21. h4 {[%emt 0:01:25]} Bd6 {[%emt 0:04:07]} 22. h5 {[%emt 0:07:16]} gxh5 {[%emt 0:00:33]} 23. Qxh5 {[%emt 0:00:37]} g6 {[%emt 0:02:42]} 24. Qh6 {[%emt 0:01:24]} Bf8 {[%emt 0:00:27]} 25. Qf4 {[%emt 0:00:31]} Bg7 {[%emt 0:00:51]} 26. Kg2 {[%emt 0:00:59]} Rad8 {[%emt 0:01:45]} 27. Qh4 {[%emt 0:03:58]} b5 {[%emt 0:06:18]} 28. Bb3 {[%emt 0:01:09]} Qe7 {[%emt 0:02:14]} 29. Qh3 {[%emt 0:04:05]} c5 {[%emt 0:04:42]} 30. Kg1 {[%emt 0:06:18]} cxd4 {[%emt 0:16:37]} 31. Rxe6 {[%emt 0:12:58]} Qf8 {[%emt 0:01:40]} 32. cxd4 {[%emt 0:04:46]} a5 {[%emt 0:05:41]} 33. Rxe8 {[%emt 0:05:48]} Rxe8 {[%emt 0:00:06]} 34. Rxe8 {[%emt 0:03:12]} Qxe8 {[%emt 0:00:04]} 35. Qg4 {[%emt 0:00:47]} Qc6 {[%emt 0:03:50]} 36. Qf4 {[%emt 0:01:37]} Qd7 {[%emt 0:01:13]} 37. a3 {[%emt 0:01:42]} Bxd4 {[%emt 0:01:10]} 38. Bxf7+ {[%emt 0:00:30]} Kg7 {[%emt 0:00:31]} 39. Be6 {[%emt 0:00:44]} Bxf2+ {[%emt 0:00:51]} 40. Qxf2 {[%emt 0:01:44]} Qxe6 {[%emt 0:00:04]} 41. Kh2 {[%emt 0:02:12]} Qf6 {[%emt 0:02:00]} 42. Qa7+ {[%emt 0:00:34]} Kh6 {[%emt 0:00:12]} 43. Qe3+ {[%emt 0:00:43]} Kh7 {[%emt 0:01:37]} 44. Qd2 {[%emt 0:00:11]} Qb6 {[%emt 0:00:40]} 45. Kh3 {[%emt 0:00:24]} a4 {[%emt 0:00:51]} 46. g4 {[%emt 0:00:16]} Qc6 {[%emt 0:00:26]} 47. Kg3 {[%emt 0:01:10]} Qc7+ {[%emt 0:00:27]} 48. Qf4 {[%emt 0:00:23]} Qxf4+ {[%emt 0:00:40]} 49. Kxf4 {[%emt 0:00:05]} Kh6 {[%emt 0:00:03]} 50. Ke4 {[%emt 0:01:18]} 1/2-1/2

[Event "34th MPL National U12G Chess-ch 2022"]
[Site "Mysore"]
[Date "2022.04.14"]
[Round "11.2"]
[White "Sherali Pattnaik"]
[Black "Shubhi Gupta"]
[Result "0-1"]
[ECO "C45"]
[WhiteElo "1209"]
[BlackElo "1434"]
[Annotator "NA RC"]
[PlyCount "104"]
[EventDate "2022.04.09"]
[EventCountry "IND"]
[SourceTitle "playchess.com"]
[Source "ChessBase"]
[SourceQuality "1"]
[TimeControl "5400+30"]

1. e4 {[%emt 0:00:03]} e5 {[%emt 0:00:27]} 2. Nf3 {[%emt 0:00:18]} Nc6 {[%emt 0:00:16]} 3. d4 {[%emt 0:00:05]} exd4 {[%emt 0:00:12]} 4. Nxd4 {[%emt 0:00:05]} Bc5 {[%emt 0:00:51]} 5. Nb3 {[%emt 0:00:05]} Bb6 {[%emt 0:00:24]} 6. Nc3 {[%emt 0:00:14]} Nf6 {[%emt 1:31:20]} 7. Bg5 {[%emt 0:04:46]} h6 {[%emt 0:00:00]} 8. Bd2 {[%emt 0:04:46]} d5 {[%emt 0:00:00]} 9. exd5 {[%emt 0:02:42]} Nxd5 {[%emt 0:00:00]} 10. Be2 {[%emt 0:00:47]} O-O {[%emt 0:00:00]} 11. O-O {[%emt 0:09:08]} Nf6 {[%emt 0:00:00]} 12. Bf4 {[%emt 0:06:16]} Bf5 {[%emt 0:00:00]} 13. Na4 {[%emt 0:08:52]} Re8 {[%emt 0:00:00]} 14. c4 {[%emt 0:08:24]} Nd4 {[%emt 0:00:00]} 15. Nxd4 {[%emt 0:02:09]} Bxd4 {[%emt 0:00:00]} 16. Bf3 {[%emt 0:02:02]} c6 {[%emt 0:00:00]} 17. Qb3 {[%emt 0:00:52]} Qe7 {[%emt 0:00:00]} 18. Nc3 {[%emt 0:06:07]} Rad8 {[%emt 0:00:00]} 19. Rad1 {[%emt 0:04:30]} g5 {[%emt 0:00:00]} 20. Ne2 {[%emt 0:04:29]} Bb6 {[%emt 0:00:00]} 21. Rxd8 {[%emt 0:03:41]} Rxd8 {[%emt 0:00:00]} 22. Be3 {[%emt 0:00:38]} Rd3 {[%emt 0:00:00]} 23. Nc3 {[%emt 0:01:41]} Bxe3 {[%emt 0:00:00]} 24. fxe3 {[%emt 0:00:02]} Qxe3+ {[%emt 0:00:00]} 25. Kh1 {[%emt 0:00:03]} Bc8 {[%emt 0:00:00]} 26. Be2 {[%emt 0:04:26]} Rd6 {[%emt 0:00:00]} 27. c5 {[%emt 0:01:01]} Re6 {[%emt 0:00:00]} 28. Bc4 {[%emt 0:00:15]} Ng4 {[%emt 0:00:00]} 29. Ne2 {[%emt 0:03:00]} Nf2+ {[%emt 0:00:00]} 30. Kg1 {[%emt 0:00:36]} Nd3+ {[%emt 0:00:00]} 31. Kh1 {[%emt 0:00:57]} Qxe2 {[%emt 0:00:00]} 32. Bxd3 {[%emt 0:04:35]} Qe3 {[%emt 0:00:00]} 33. Qc2 {[%emt 0:02:39]} Re7 {[%emt 0:00:00]} 34. Bh7+ {[%emt 0:05:25]} Kg7 {[%emt 0:00:00]} 35. Bf5 {[%emt 0:00:43]} Bxf5 {[%emt 0:00:00]} 36. Qxf5 {[%emt 0:00:03]} Qe5 {[%emt 0:00:00]} 37. Qf2 {[%emt 0:00:05]} f5 {[%emt 0:00:00]} 38. g3 {[%emt 0:01:11]} Kg6 {[%emt 0:00:00]} 39. Kg1 {[%emt 0:01:34]} Qe3 {[%emt 0:00:00]} 40. Rd1 {[%emt 0:01:13]} Qe4 {[%emt 0:00:00]} 41. Rd6+ {[%emt 0:01:33]} Re6 {[%emt 0:00:00]} 42. Rd4 {[%emt 0:03:20]} Qb1+ {[%emt 0:00:00]} 43. Kg2 {[%emt 0:00:35]} Qxa2 {[%emt 0:00:00]} 44. h4 {[%emt 0:00:36]} Qa6 {[%emt 0:00:00]} 45. Rd6 {[%emt 0:00:51]} Qc4 {[%emt 0:00:00]} 46. Qd2 {[%emt 0:05:13]} Kh5 {[%emt 0:00:00]} 47. Qf2 {[%emt 0:00:31]} Re2 {[%emt 0:00:00]} 48. Kh1 {[%emt 0:00:33]} Rxf2 {[%emt 0:00:00]} 49. Rxh6+ {[%emt 0:00:05]} Kxh6 {[%emt 0:00:00]} 50. hxg5+ {[%emt 0:00:03]} Kh5 {[%emt 0:00:00]} 51. g4+ {[%emt 0:00:02]} Kxg4 {[%emt 0:00:00]} 52. g6 {[%emt 0:00:03]} Qf1# {[%emt 0:00:00]} 0-1

[Event "34th MPL National U12G Chess-ch 2022"]
[Site "Mysore"]
[Date "2022.04.14"]
[Round "11.3"]
[White "Shriyana S Mallya"]
[Black "Nivedita V C"]
[Result "0-1"]
[ECO "C45"]
[WhiteElo "1277"]
[BlackElo "1200"]
[Annotator "NA RC"]
[PlyCount "58"]
[EventDate "2022.04.09"]
[EventCountry "IND"]
[SourceTitle "playchess.com"]
[Source "ChessBase"]
[SourceQuality "1"]
[TimeControl "5400+30"]

1. e4 {[%emt 0:00:02]} e5 {[%emt 0:00:07]} 2. Nf3 {[%emt 0:00:15]} Nc6 {[%emt 0:00:11]} 3. d4 {[%emt 0:00:26]} exd4 {[%emt 0:00:19]} 4. Nxd4 {[%emt 0:00:06]} Bc5 {[%emt 0:01:22]} 5. Be3 {[%emt 0:00:22]} Qf6 {[%emt 0:00:16]} 6. c3 {[%emt 0:00:21]} Nge7 {[%emt 0:00:10]} 7. Bc4 {[%emt 0:00:32]} d6 {[%emt 0:00:46]} 8. O-O {[%emt 0:01:19]} O-O {[%emt 0:03:02]} 9. Qd2 {[%emt 0:01:58]} Ne5 {[%emt 0:02:31]} 10. Bb3 {[%emt 0:04:43]} Qg6 {[%emt 0:10:07]} 11. f3 {[%emt 0:02:45]} a5 {[%emt 0:03:14]} 12. a4 {[%emt 0:02:10]} b6 {[%emt 0:01:22]} 13. Bd1 {[%emt 0:15:42]} Nc4 {[%emt 0:01:31]} 14. Qf2 {[%emt 0:01:08]} Bh3 {[%emt 0:04:27]} 15. Re1 {[%emt 0:06:23]} Rae8 {[%emt 0:10:50]} 16. Kh1 {[%emt 0:06:20]} Nxe3 {[%emt 0:09:01]} 17. gxh3 {[%emt 0:08:00]} Bxd4 {[%emt 0:01:58]} 18. cxd4 {[%emt 0:00:34]} Nxd1 {[%emt 0:00:26]} 19. Rxd1 {[%emt 0:00:30]} f5 {[%emt 0:01:15]} 20. Qc2 {[%emt 0:18:20]} fxe4 {[%emt 0:01:05]} 21. fxe4 {[%emt 0:29:04]} Nd5 {[%emt 0:01:01]} 22. Nd2 {[%emt 0:00:00]} Rf2 {[%emt 0:02:51]} 23. Rg1 {[%emt 0:00:00]} Qh6 {[%emt 0:01:04]} 24. Qc6 {[%emt 0:00:00]} Nf6 {[%emt 0:02:52]} 25. Qc4+ {[%emt 0:00:00]} d5 {[%emt 0:00:16]} 26. Qxc7 {[%emt 0:00:00]} Rxd2 {[%emt 0:01:29]} 27. e5 {[%emt 0:00:09]} Ne4 {[%emt 0:40:27]} 28. Rgf1 {[%emt 0:02:29]} Ng3+ {[%emt 0:00:00]} 29. Kg1 {[%emt 0:00:32]} Qe3+ {[%emt 0:01:00]} 0-1

[Event "34th MPL National U12G Chess-ch 2022"]
[Site "Mysore"]
[Date "2022.04.14"]
[Round "11.4"]
[White "Kalyani Sirin"]
[Black "Aadya Gupta"]
[Result "1-0"]
[ECO "C54"]
[WhiteElo "1243"]
[BlackElo "1218"]
[Annotator "NA RC"]
[PlyCount "63"]
[EventDate "2022.04.09"]
[EventCountry "IND"]
[SourceTitle "playchess.com"]
[Source "ChessBase"]
[SourceQuality "1"]
[TimeControl "5400+30"]

1. e4 {[%emt 0:00:03]} e5 {[%emt 0:00:01]} 2. Nf3 {[%emt 0:00:14]} Nc6 {[%emt 0:00:04]} 3. Bc4 {[%emt 0:00:09]} Bc5 {[%emt 0:00:05]} 4. c3 {[%emt 0:00:12]} Nf6 {[%emt 0:00:04]} 5. d3 {[%emt 0:00:09]} a6 {[%emt 0:00:04]} 6. a4 {[%emt 0:00:16]} d6 {[%emt 0:00:04]} 7. O-O {[%emt 0:00:55]} h6 {[%emt 0:00:07]} 8. b4 {[%emt 0:02:36]} Bb6 {[%emt 0:00:52]} 9. Na3 {[%emt 0:00:39]} O-O {[%emt 0:00:28]} 10. h3 {[%emt 0:00:29]} Ne7 {[%emt 0:00:14]} 11. Re1 {[%emt 0:01:09]} Ng6 {[%emt 0:00:05]} 12. Qc2 {[%emt 0:06:27]} Nh5 {[%emt 0:00:40]} 13. Be3 {[%emt 0:02:48]} Qf6 {[%emt 0:01:37]} 14. Bxb6 {[%emt 0:01:21]} cxb6 {[%emt 0:00:02]} 15. Re3 {[%emt 0:00:27]} Nhf4 {[%emt 0:00:36]} 16. Rd1 {[%emt 0:14:37]} h5 {[%emt 0:04:51]} 17. d4 {[%emt 0:02:24]} Nxg2 {[%emt 0:07:05]} 18. Kxg2 {[%emt 0:01:55]} Nf4+ {[%emt 0:00:07]} 19. Kh2 {[%emt 0:07:00]} Nxh3 {[%emt 0:02:25]} 20. Bf1 {[%emt 0:03:00]} Qf4+ {[%emt 0:03:08]} 21. Kh1 {[%emt 0:00:58]} Bg4 {[%emt 0:01:32]} 22. Rdd3 {[%emt 0:15:56]} f5 {[%emt 0:00:41]} 23. Bxh3 {[%emt 0:03:31]} fxe4 {[%emt 0:01:10]} 24. Bxg4 {[%emt 0:04:38]} hxg4 {[%emt 0:00:54]} 25. Qa2+ {[%emt 0:05:59]} Kh8 {[%emt 0:00:21]} 26. Nxe5 {[%emt 0:04:51]} Rf6 {[%emt 0:06:11]} 27. Rh3+ {[%emt 0:01:18]} gxh3 {[%emt 0:00:46]} 28. Rxh3+ {[%emt 0:00:03]} Qh6 {[%emt 0:00:40]} 29. Nf7+ {[%emt 0:00:17]} Kh7 {[%emt 0:00:42]} 30. Nxh6 {[%emt 0:00:22]} gxh6 {[%emt 0:00:15]} 31. Qd5 {[%emt 0:00:33]} Raf8 {[%emt 0:00:10]} 32. Qxe4+ {[%emt 0:00:27]} 1-0

[Event "34th MPL National U12G Chess-ch 2022"]
[Site "Mysore"]
[Date "2022.04.14"]
[Round "11.5"]
[White "Singh Myra"]
[Black "Shanjula Senthil"]
[Result "1/2-1/2"]
[ECO "B87"]
[WhiteElo "1606"]
[BlackElo "1168"]
[Annotator "NA RC"]
[PlyCount "74"]
[EventDate "2022.04.09"]
[EventCountry "IND"]
[SourceTitle "playchess.com"]
[Source "ChessBase"]
[SourceQuality "1"]
[TimeControl "5400+30"]

1. e4 {[%emt 0:00:02]} c5 {[%emt 0:00:12]} 2. Nf3 {[%emt 0:00:04]} d6 {[%emt 0:00:08]} 3. d4 {[%emt 0:00:05]} cxd4 {[%emt 0:00:18]} 4. Nxd4 {[%emt 0:00:05]} Nf6 {[%emt 0:00:14]} 5. Nc3 {[%emt 0:00:05]} a6 {[%emt 0:00:05]} 6. Bc4 {[%emt 0:00:04]} e6 {[%emt 0:01:11]} 7. Bb3 {[%emt 0:00:36]} b5 {[%emt 0:00:39]} 8. O-O {[%emt 0:02:10]} Be7 {[%emt 0:00:13]} 9. Qf3 {[%emt 0:00:07]} Qc7 {[%emt 0:00:32]} 10. Qg3 {[%emt 0:00:14]} O-O {[%emt 0:00:50]} 11. Bh6 {[%emt 0:00:07]} Ne8 {[%emt 0:00:31]} 12. f4 {[%emt 0:04:23]} Qc5 {[%emt 0:05:56]} 13. Nce2 {[%emt 0:06:50]} e5 {[%emt 0:03:25]} 14. f5 {[%emt 0:00:18]} Bf6 {[%emt 0:04:12]} 15. Bd5 {[%emt 0:03:02]} Ra7 {[%emt 0:04:20]} 16. b4 {[%emt 0:00:15]} Qb6 {[%emt 0:01:05]} 17. c3 {[%emt 0:02:00]} exd4 {[%emt 0:02:23]} 18. cxd4 {[%emt 0:00:07]} Kh8 {[%emt 0:01:00]} 19. Be3 {[%emt 0:00:48]} Qd8 {[%emt 0:02:50]} 20. e5 {[%emt 0:11:41]} Bh4 {[%emt 0:06:52]} 21. Qf3 {[%emt 0:00:15]} Bg5 {[%emt 0:03:25]} 22. Bxg5 {[%emt 0:06:02]} Qxg5 {[%emt 0:00:25]} 23. Ng3 {[%emt 0:01:28]} dxe5 {[%emt 0:04:51]} 24. dxe5 {[%emt 0:00:08]} Qe7 {[%emt 0:01:37]} 25. Qf4 {[%emt 0:03:14]} Nd7 {[%emt 0:07:05]} 26. Rae1 {[%emt 0:03:46]} Nb6 {[%emt 0:06:54]} 27. f6 {[%emt 0:02:42]} Qd7 {[%emt 0:02:17]} 28. Bb3 {[%emt 0:07:02]} Bb7 {[%emt 0:06:36]} 29. e6 {[%emt 0:00:45]} Qc6 {[%emt 0:03:55]} 30. fxg7+ {[%emt 0:00:31]} Nxg7 {[%emt 0:00:15]} 31. Re2 {[%emt 0:00:49]} Nd5 {[%emt 0:07:54]} 32. Qe5 {[%emt 0:07:42]} f6 {[%emt 0:01:46]} 33. e7 {[%emt 0:03:11]} Re8 {[%emt 0:01:33]} 34. Bxd5 {[%emt 0:00:56]} Qb6+ {[%emt 0:00:12]} 35. Kh1 {[%emt 0:05:46]} Bxd5 {[%emt 0:01:03]} 36. Qxd5 {[%emt 0:00:11]} Raxe7 {[%emt 0:00:46]} 37. Rxe7 {[%emt 0:00:07]} Rxe7 {[%emt 0:00:05]} 1/2-1/2